fUSD/lending_fUSD_20241107
["ID","MTS","AMOUNT","RATE_DAILY","PERIOD"]
[341543347,1730971170377,-756.18,0.00030684,4]
[341543348,1730971170411,-348.45,0.00030684,4]
[341543349,1730971170446,-500.0,0.00030684,4]
[341543350,1730971170480,-500.0,0.00030684,4]
[341543351,1730971170513,-1187.19,0.00030684,4]
[341543352,1730971170547,-597.06,0.00030684,4]
[341543353,1730971170586,-844.92,0.00030684,4]
[341543354,1730971170629,-500.0,0.00030684,4]
[341543355,1730971170664,-151.0,0.00030684,7]
[341543356,1730971170699,-547.78,0.00030684,4]
[341543357,1730971170731,-500.0,0.00030684,4]
[341543358,1730971170763,-500.0,0.00030684,4]
[341543359,1730971170814,-583.37,0.00030684,4]
[341543360,1730971170851,-577.19,0.00030684,4]
[341543361,1730971170887,-1467.84,0.00030684,4]
[341543362,1730971170923,-500.0,0.00030684,4]
[341543363,1730971170955,-500.0,0.00030684,4]
[341543364,1730971170989,-958.45,0.00030684,4]
[341543365,1730971171021,-500.0,0.00030684,4]
[341543366,1730971171052,-573.12,0.00030684,4]
[341543367,1730971171084,-500.0,0.00030684,4]
[341543368,1730971171117,-500.0,0.00030684,4]
[341543369,1730971171149,-500.0,0.00030684,4]
[341543370,1730971171182,-556.09,0.00030684,4]
[341543371,1730971171213,-1269.92,0.00030684,4]
[341543372,1730971171244,-500.0,0.00030684,4]
[341543373,1730971171274,-500.0,0.00030684,4]
[341543374,1730971171310,-500.0,0.00030684,4]
[341543375,1730971171340,-500.0,0.00030684,4]
[341543376,1730971171372,-1384.48,0.00030684,4]
[341543377,1730971171403,-500.0,0.00030684,4]
[341543378,1730971171436,-1960.0,0.00030684,4]
[341543379,1730971171470,-500.0,0.00030684,4]
[341543380,1730971171502,-500.0,0.00030684,4]
[341543381,1730971171533,-817.07,0.00030684,4]
[341543382,1730971171566,-500.0,0.00030684,4]
[341543383,1730971171599,-500.0,0.00030684,4]
[341543384,1730971171632,-544.29,0.00030684,4]
[341543385,1730971171664,-561.15,0.00030684,4]
[341543386,1730971171698,-500.0,0.00030684,4]
[341543387,1730971171728,-1008.48,0.00030684,4]
[341543388,1730971171759,-1069.66,0.00030684,4]
[341543389,1730971171791,-1051.44,0.00030684,4]
[341543390,1730971171820,-500.0,0.00030684,4]
[341543391,1730971171851,-1231.78,0.00030684,4]
[341543392,1730971171881,-897.83,0.00030684,4]
[341543393,1730971171911,-1186.21,0.00030684,4]
[341543394,1730971171942,-578.0,0.00030684,4]
[341543395,1730971171973,-757.45,0.00030684,4]
[341543396,1730971172003,-2634.42,0.00030684,4]
[341543397,1730971172033,-2000.0,0.00030684,4]
[341543398,1730971172063,-1015.43,0.00030684,4]
[341543399,1730971172092,-500.0,0.00030684,4]
[341543400,1730971172123,-643.31,0.00030684,4]
[341543401,1730971172156,-742.64,0.00030684,4]
[341543402,1730971172188,-917.87,0.00030684,4]
[341543403,1730971172219,-196.69441883,0.00030684,4]
[341543404,1730971172249,-590.76,0.00030684,4]
[341543405,1730971172282,-6016.62,0.00030684,4]
[341543406,1730971172317,-598.31,0.00030684,4]
[341543407,1730971172347,-1005.12,0.00030684,4]
[341543408,1730971172379,-500.0,0.00030684,4]
[341543409,1730971172412,-152.73713296,0.00030684,4]
[341543410,1730971172449,-640.15,0.00030684,4]
[341543411,1730971172480,-585.1,0.00030684,4]
[341543412,1730971172512,-1029.82,0.00030684,4]
[341543413,1730971172543,-500.0,0.00030684,4]
[341543414,1730971172575,-533.31,0.00030684,4]
[341543415,1730971172609,-1216.47,0.00030684,4]
[341543416,1730971172642,-500.0,0.00030684,4]
[341543417,1730971172676,-500.0,0.00030684,4]
[341543418,1730971172712,-500.0,0.00030684,4]
[341543419,1730971172745,-500.0,0.00030684,4]
[341543420,1730971172777,-500.0,0.00030684,4]
[341543421,1730971172810,-500.0,0.00030684,4]
[341543422,1730971172843,-1601.06,0.00030684,4]
[341543423,1730971172876,-500.0,0.00030684,4]
[341543424,1730971172910,-221.303647,0.00030684,4]
[341543425,1730971173285,-1034.12,0.00030684,4]
[341543426,1730971173321,-500.0,0.00030684,4]
[341543427,1730971173359,-500.0,0.00030684,4]
[341543428,1730971173395,-981.99,0.00030684,4]
[341543429,1730971173431,-4659.03,0.00030684,4]
[341543430,1730971173467,-500.0,0.00030684,4]
[341543431,1730971173504,-223.112631,0.00030684,7]
[341543432,1730971173540,-1054.73,0.00030684,4]
[341543433,1730971173574,-533.55,0.00030684,4]
[341543434,1730971173607,-500.0,0.00030684,4]
[341543435,1730971173642,-813.41,0.00030684,4]
[341543436,1730971173677,-500.0,0.00030684,4]
[341543437,1730971173712,-1220.45,0.00030684,4]
[341543438,1730971173746,-500.0,0.00030684,4]
[341543439,1730971173779,-500.0,0.00030684,4]
[341543440,1730971173814,-1013.07,0.00030684,4]
[341543441,1730971173848,-917.49,0.00030684,4]
[341543442,1730971173883,-500.0,0.00030684,4]
[341543443,1730971173917,-500.0,0.00030684,4]
[341543444,1730971173951,-500.0,0.00030684,4]
[341543445,1730971173985,-1132.76,0.00030684,4]
[341543446,1730971174019,-215.717257,0.00030684,4]
[341543447,1730971174054,-724.17,0.00030684,4]
[341543448,1730971174088,-500.0,0.00030684,4]
[341543449,1730971174122,-1390.75,0.00030684,4]
[341543450,1730971174158,-500.0,0.00030684,4]
[341543451,1730971174193,-660.77,0.00030684,4]
[341543452,1730971174227,-500.0,0.00030684,4]
[341543453,1730971174259,-505.48,0.00030684,4]
[341543454,1730971174296,-2358.43,0.00030684,4]
[341543455,1730971174331,-686.67,0.00030684,4]
[341543456,1730971174366,-500.0,0.00030684,4]
[341543457,1730971174403,-500.0,0.00030684,4]
[341543458,1730971174439,-657.44,0.00030684,4]
[341543459,1730971174474,-886.85,0.00030684,4]
[341543460,1730971174509,-655.8,0.00030684,4]
[341543461,1730971174544,-500.0,0.00030684,4]
[341543462,1730971174578,-1055.25,0.00030684,4]
[341543463,1730971174613,-765.91,0.00030684,4]
[341543464,1730971174647,-500.0,0.00030684,4]
[341543465,1730971174680,-1697.92,0.00030684,4]
[341543466,1730971174713,-2156.63,0.00030684,4]
[341543467,1730971174746,-1363.58,0.00030684,4]
[341543468,1730971174778,-500.0,0.00030684,4]
[341543469,1730971174810,-500.0,0.00030684,4]
[341543470,1730971174842,-500.0,0.00030684,4]
[341543471,1730971174874,-500.0,0.00030684,4]
[341543472,1730971174906,-500.0,0.00030684,4]
[341543473,1730971174938,-502.16209757,0.00030684,4]
[341543474,1730971174972,-986.76,0.00030684,4]
[341543475,1730971175006,-1206.68,0.00030684,4]
[341543476,1730971175038,-743.07,0.00030684,4]
[341543477,1730971175070,-500.0,0.00030684,4]
[341543478,1730971175102,-2423.95,0.00030684,4]
[341543479,1730971175135,-500.0,0.00030684,4]
[341543480,1730971175168,-500.0,0.00030684,4]
[341543481,1730971175201,-500.0,0.00030684,4]
[341543482,1730971175232,-500.0,0.00030684,4]
[341543483,1730971175263,-500.0,0.00030684,4]
[341543484,1730971175295,-500.0,0.00030684,4]
[341543485,1730971175327,-500.0,0.00030684,4]
[341543486,1730971175359,-500.0,0.00030684,4]
[341543487,1730971175393,-778.53,0.00030684,4]
[341543488,1730971175427,-779.18,0.00030684,4]
[341543489,1730971175459,-654.5,0.00030684,4]
[341543490,1730971175490,-500.0,0.00030684,4]
[341543491,1730971175523,-500.0,0.00030684,4]
[341543492,1730971175555,-500.0,0.00030684,4]
[341543493,1730971175587,-500.0,0.00030684,4]
[341543494,1730971175619,-500.0,0.00030684,4]
[341543495,1730971175650,-500.0,0.00030684,4]
[341543496,1730971175682,-500.0,0.00030684,4]
[341543497,1730971175712,-1833.46,0.00030684,4]
[341543498,1730971175743,-1025.77,0.00030684,4]
[341543499,1730971175773,-500.0,0.00030684,4]
[341543500,1730971175804,-1150.49,0.00030684,4]
[341543501,1730971175837,-1271.81,0.00030684,4]
[341543502,1730971175868,-669.87,0.00030684,4]
[341543503,1730971175900,-619.83,0.00030684,4]
[341543504,1730971175932,-500.0,0.00030684,4]
[341543505,1730971175963,-500.0,0.00030684,4]
[341543506,1730971175994,-922.65,0.00030684,4]
[341543507,1730971176025,-500.0,0.00030684,4]
[341543508,1730971176055,-500.0,0.00030684,4]
[341543509,1730971176086,-937.27,0.00030684,4]
[341543510,1730971176121,-873.19,0.00030684,4]
[341543511,1730971176155,-732.93,0.00030684,2]
[341543512,1730971176189,-151.0,0.00030684,7]
[341543513,1730971176223,-151.0,0.00030684,7]
[341543514,1730971176257,-693.71,0.00030684,4]
[341543515,1730971176292,-507.17,0.00030684,4]
[341543516,1730971176322,-872.59,0.00030684,4]
[341543517,1730971176355,-1090.97,0.00030684,4]
[341543518,1730971176391,-337.30457731,0.00030684,4]
[341543519,1730971176423,-596.7,0.00030684,4]
[341543520,1730971176456,-1693.29,0.00030684,4]
[341543521,1730971176551,-151.0,0.00030684,7]
[341543522,1730971176583,-151.0,0.00030684,7]
[341543523,1730971176615,-151.0,0.00030684,7]
[341543524,1730971176646,-500.0,0.00030684,4]
[341543525,1730971176679,-500.0,0.00030684,4]
[341543526,1730971176711,-1493.2,0.00030684,4]
[341543527,1730971176742,-556.66,0.00030684,4]
[341543528,1730971176774,-551.6,0.00030684,4]
[341543529,1730971176807,-3450.8,0.00030684,4]
[341543530,1730971176837,-500.0,0.00030684,4]
[341543531,1730971176867,-500.0,0.00030684,4]
[341543532,1730971176899,-1242.33,0.00030684,4]
[341543533,1730971176930,-151.0,0.00030684,7]
[341543534,1730971176962,-151.0,0.00030684,7]
[341543535,1730971176993,-429.77617444,0.00030684,4]
[341543536,1730971177025,-151.0,0.00030684,7]
[341543537,1730971177056,-921.56,0.00030684,4]
[341543538,1730971177087,-500.0,0.00030684,4]
[341543539,1730971177118,-818.26,0.00030684,4]
[341543540,1730971177151,-500.0,0.00030684,4]
[341543541,1730971177184,-500.0,0.00030684,4]
[341543542,1730971177216,-1081.51,0.00030684,4]
[341543543,1730971177248,-500.0,0.00030684,4]
[341543544,1730971177281,-500.0,0.00030684,4]
[341543545,1730971177316,-1331.41,0.00030684,4]
[341543546,1730971177348,-500.0,0.00030684,4]
[341543547,1730971177381,-500.0,0.00030684,4]
[341543548,1730971177412,-500.0,0.00030684,4]
[341543549,1730971177442,-500.0,0.00030684,4]
[341543550,1730971177473,-926.29,0.00030684,4]
[341543551,1730971177503,-572.76,0.00030684,4]
[341543552,1730971177533,-2170.0,0.00030684,4]
[341543553,1730971177563,-500.0,0.00030684,4]
[341543554,1730971177593,-500.0,0.00030684,4]
[341543555,1730971177624,-500.0,0.00030684,4]
[341543556,1730971177656,-2425.13,0.00030684,4]
[341543557,1730971177686,-500.0,0.00030684,4]
[341543558,1730971177717,-500.0,0.00030684,4]
[341543559,1730971177747,-2877.0,0.00030684,4]
[341543560,1730971177778,-500.0,0.00030684,4]
[341543561,1730971177810,-500.0,0.00030684,4]
[341543562,1730971177841,-2938.97,0.00030684,4]
[341543563,1730971177873,-2201.29,0.00030684,4]
[341543564,1730971177904,-500.0,0.00030684,4]
[341543565,1730971177936,-1170.84,0.00030684,4]
[341543566,1730971177969,-870.92,0.00030684,4]
[341543567,1730971178001,-500.0,0.00030684,4]
[341543568,1730971178032,-500.0,0.00030684,4]
[341543569,1730971178063,-500.0,0.00030684,4]
[341543570,1730971178096,-559.17,0.00030684,4]
[341543571,1730971178128,-500.0,0.00030684,4]
[341543572,1730971178167,-1566.82,0.00030684,4]
[341543573,1730971178201,-500.0,0.00030684,4]
[341543574,1730971178232,-1554.1,0.00030684,4]
[341543575,1730971178264,-670.46,0.00030684,4]
[341543576,1730971178298,-1189.48,0.00030684,4]
[341543577,1730971178332,-500.0,0.00030684,4]
[341543578,1730971178366,-500.0,0.00030684,4]
[341543579,1730971178401,-500.0,0.00030684,4]
[341543580,1730971178433,-500.0,0.00030684,4]
[341543581,1730971178465,-1485.64,0.00030684,4]
[341543582,1730971178496,-734.3,0.00030684,4]
[341543583,1730971178526,-500.0,0.00030684,4]
[341543584,1730971178560,-500.0,0.00030684,4]
[341543585,1730971178592,-500.0,0.00030684,4]
[341543586,1730971178625,-718.11,0.00030684,4]
[341543587,1730971178656,-627.92310722,0.00030684,4]
[341543588,1730971178687,-798.51,0.00030684,4]
[341543589,1730971178717,-641.08,0.00030684,4]
[341543590,1730971178748,-500.0,0.00030684,4]
[341543591,1730971178781,-2631.4,0.00030684,4]
[341543592,1730971178811,-500.0,0.00030684,4]
[341543593,1730971178841,-500.0,0.00030684,4]
[341543594,1730971178872,-689.35,0.00030684,4]
[341543595,1730971178904,-1209.11,0.00030684,4]
[341543596,1730971178937,-500.0,0.00030684,4]
[341543597,1730971178966,-500.0,0.00030684,4]
[341543598,1730971178997,-766.69,0.00030684,4]
[341543599,1730971179026,-1805.21,0.00030684,4]
[341543600,1730971179056,-500.0,0.00030684,4]
[341543601,1730971179089,-500.0,0.00030684,4]
[341543602,1730971179119,-759.22,0.00030684,4]
[341543603,1730971179153,-500.0,0.00030684,4]
[341543604,1730971179183,-536.27,0.00030684,4]
[341543605,1730971179214,-500.0,0.00030684,4]
[341543606,1730971179243,-824.7,0.00030684,4]
[341543607,1730971179275,-511.08,0.00030684,4]
[341543608,1730971179309,-4493.53,0.00030684,4]
[341543609,1730971179340,-819.09,0.00030684,4]
[341543610,1730971179370,-1413.47,0.00030684,4]
[341543611,1730971179402,-500.0,0.00030684,4]
[341543612,1730971179433,-500.0,0.00030684,4]
[341543613,1730971179464,-500.0,0.00030684,4]
[341543614,1730971179495,-911.27,0.00030684,4]
[341543615,1730971179524,-746.88,0.00030684,4]
[341543616,1730971179555,-1390.29,0.00030684,4]
[341543617,1730971179588,-500.0,0.00030684,4]
[341543618,1730971179618,-501.3,0.00030684,4]
[341543619,1730971179648,-500.0,0.00030684,4]
[341543620,1730971179680,-863.62,0.00030684,4]
[341543621,1730971179710,-2017.58,0.00030684,4]
[341543622,1730971179742,-500.0,0.00030684,4]
[341543623,1730971179773,-712.85,0.00030684,4]
[341543624,1730971179804,-719.81,0.00030684,4]
[341543625,1730971179835,-500.0,0.00030684,4]
[341543626,1730971179867,-500.0,0.00030684,4]
[341543627,1730971179899,-500.0,0.00030684,4]
[341543628,1730971179933,-1462.54,0.00030684,4]
[341543629,1730971179968,-500.0,0.00030684,4]
[341543630,1730971180001,-500.0,0.00030684,4]
[341543631,1730971180037,-569.5,0.00030684,4]
[341543632,1730971180070,-604.67,0.00030684,4]
[341543633,1730971180104,-1679.0,0.00030684,4]
[341543634,1730971180137,-853.07,0.00030684,4]
[341543635,1730971180173,-500.0,0.00030684,4]
[341543636,1730971180208,-500.0,0.00030684,4]
[341543637,1730971180241,-568.94,0.00030684,4]
[341543638,1730971180274,-807.78,0.00030684,4]
[341543639,1730971180311,-500.0,0.00030684,4]
[341543640,1730971180344,-500.0,0.00030684,4]
[341543641,1730971180378,-500.0,0.00030684,4]
[341543642,1730971180411,-1046.26,0.00030684,4]
[341543643,1730971180444,-500.0,0.00030684,4]
[341543644,1730971180481,-515.22,0.00030684,4]
[341543645,1730971180514,-500.0,0.00030684,4]
[341543646,1730971180547,-378.45,0.00030684,4]
[341543647,1730971180579,-1656.98,0.00030684,4]
[341543648,1730971180612,-1632.08,0.00030684,4]
[341543649,1730971180643,-500.0,0.00030684,4]
[341543650,1730971180677,-2560.24,0.00030684,4]
[341543651,1730971180709,-500.0,0.00030684,4]
[341543652,1730971180741,-852.47,0.00030684,4]
[341543653,1730971180770,-500.0,0.00030684,4]
[341543654,1730971180800,-500.0,0.00030684,4]
[341543655,1730971180830,-500.0,0.00030684,4]
[341543656,1730971180861,-500.0,0.00030684,4]
[341543657,1730971180891,-540.23,0.00030684,4]
[341543658,1730971180921,-733.56,0.00030684,4]
[341543659,1730971180950,-500.0,0.00030684,4]
[341543660,1730971180980,-500.0,0.00030684,4]
[341543661,1730971181010,-1634.25,0.00030684,4]
[341543662,1730971181040,-1608.52,0.00030684,4]
[341543663,1730971181071,-500.0,0.00030684,4]
[341543664,1730971181102,-500.0,0.00030684,4]
[341543665,1730971181133,-750.71,0.00030684,4]
[341543666,1730971181171,-500.0,0.00030684,4]
[341543667,1730971181205,-500.0,0.00030684,4]
[341543668,1730971181238,-500.0,0.00030684,4]
[341543669,1730971181270,-2020.93,0.00030684,4]
[341543670,1730971181302,-4701.52,0.00030684,4]
[341543671,1730971181335,-3967.8,0.00030684,4]
[341543672,1730971181368,-694.43,0.00030684,4]
[341543673,1730971181523,-500.0,0.00030684,4]
[341543674,1730971181555,-500.0,0.00030684,4]
[341543675,1730971181587,-500.0,0.00030684,4]
[341543676,1730971181619,-2451.86,0.00030684,4]
[341543677,1730971181650,-662.46,0.00030684,4]
[341543678,1730971181681,-500.0,0.00030684,4]
[341543679,1730971181711,-500.0,0.00030684,4]
[341543680,1730971181741,-642.08,0.00030684,4]
[341543681,1730971181775,-808.86,0.00030684,4]
[341543682,1730971181806,-19551.6499364,0.0003069,2]
[341543683,1730971181841,-8928.28496,0.0003069,2]
[341543684,1730971181873,-2449.9667741,0.0003069,2]
[341543685,1730971181906,-3836.6,0.00030776,2]
[341543686,1730971181939,-250.0,0.000308,30]
[341543687,1730971181974,-800.0,0.000308,11]
[341543688,1730971182004,-152.0,0.00030859,4]
[341543689,1730971182035,-1015.0,0.00030863,5]
[341543690,1730971182067,-370722.154639,0.000309,2]
[341543691,1730971182100,-1100.0,0.000309,11]
[341543692,1730971182132,-500.0,0.00030957,4]
[341543693,1730971182168,-500.0,0.00030957,4]
[341543694,1730971182202,-500.0,0.00030957,4]
[341543695,1730971182235,-500.0,0.00030957,4]
[341543696,1730971182270,-500.0,0.00030957,4]
[341543697,1730971182304,-688.94,0.00030957,4]
[341543698,1730971182336,-688.94,0.00030957,4]
[341543699,1730971182369,-500.0,0.00030957,4]
[341543700,1730971182400,-500.0,0.00030957,4]
[341543701,1730971182432,-500.0,0.00030957,4]
[341543702,1730971182464,-500.0,0.00030958,4]
[341543703,1730971182496,-200.0,0.00030958,4]
[341543704,1730971182527,-500.0,0.00030958,4]
[341543705,1730971182558,-500.0,0.00030958,4]
[341543706,1730971182592,-633.13,0.00030958,4]
[341543707,1730971182624,-523.02317826,0.00030958,4]
[341543708,1730971182658,-500.0,0.00030958,4]
[341543709,1730971182691,-361.30088682,0.00030958,4]
[341543710,1730971182722,-186.14731102,0.00030958,4]
[341543711,1730971182756,-500.0,0.00030958,4]
[341543712,1730971182789,-333.47426404,0.00030958,4]
[341543713,1730971182822,-500.0,0.00030958,4]
[341543714,1730971182853,-500.0,0.00030958,4]
[341543715,1730971182884,-500.0,0.00030958,4]
[341543716,1730971182917,-480.01252977,0.00030958,4]
[341543717,1730971182948,-500.0,0.00030958,4]
[341543718,1730971182981,-500.0,0.00030958,4]
[341543719,1730971183014,-500.0,0.00030958,4]
[341543720,1730971183046,-500.0,0.00030958,4]
[341543721,1730971183077,-500.0,0.00030958,4]
[341543722,1730971183110,-730.59,0.00030958,4]
[341543723,1730971183143,-500.0,0.00030958,4]
[341543724,1730971183176,-500.0,0.00030958,4]
[341543725,1730971183209,-500.0,0.00030958,4]
[341543726,1730971183245,-500.0,0.00030958,4]
[341543727,1730971183277,-500.0,0.00030958,4]
[341543728,1730971183312,-500.0,0.00030958,4]
[341543729,1730971183345,-500.0,0.00030958,4]
[341543730,1730971183377,-300.0,0.00030958,4]
[341543731,1730971183410,-500.0,0.00030958,4]
[341543732,1730971183442,-500.0,0.00030958,4]
[341543733,1730971183474,-500.0,0.00030958,4]
[341543734,1730971183506,-500.0,0.00030958,4]
[341543735,1730971183536,-500.0,0.00030958,4]
[341543736,1730971183567,-500.0,0.00030958,4]
[341543737,1730971183599,-500.0,0.00030958,4]
[341543738,1730971183631,-500.0,0.00030958,4]
[341543739,1730971183662,-500.0,0.00030958,4]
[341543740,1730971183693,-500.0,0.00030958,4]
[341543741,1730971183723,-537.66,0.00030958,4]
[341543742,1730971183753,-529.47207395,0.00030958,4]
[341543743,1730971183784,-774.89,0.00030958,4]
[341543744,1730971183815,-500.0,0.00030958,4]
[341543745,1730971183848,-500.0,0.00030958,4]
[341543746,1730971183878,-500.0,0.00030958,4]
[341543747,1730971183911,-500.0,0.00030958,4]
[341543748,1730971183944,-687.97,0.00030958,4]
[341543749,1730971183979,-500.0,0.00030958,4]
[341543750,1730971184010,-500.0,0.00030958,4]
[341543751,1730971184042,-500.0,0.00030958,4]
[341543752,1730971184072,-500.0,0.00030958,4]
[341543753,1730971184103,-500.0,0.00030958,4]
[341543754,1730971184135,-500.0,0.00030958,4]
[341543755,1730971184169,-682.28,0.00030958,4]
[341543756,1730971184203,-500.0,0.00030958,4]
[341543757,1730971184235,-500.0,0.00030958,4]
[341543758,1730971184266,-500.0,0.00030958,4]
[341543759,1730971184296,-500.0,0.00030958,4]
[341543760,1730971184327,-500.0,0.00030958,4]
[341543761,1730971184361,-500.0,0.00030958,4]
[341543762,1730971184393,-749.9,0.00030958,4]
[341543763,1730971184424,-500.0,0.00030958,4]
[341543764,1730971184457,-500.0,0.00030958,4]
[341543765,1730971184487,-500.0,0.00030958,4]
[341543766,1730971184519,-500.0,0.00030958,4]
[341543767,1730971184549,-500.0,0.00030958,4]
[341543768,1730971184580,-749.72,0.00030958,4]
[341543769,1730971184611,-339.71350563,0.00030958,4]
[341543770,1730971184641,-500.0,0.00030958,4]
[341543771,1730971184674,-500.0,0.00030958,4]
[341543772,1730971184704,-712.67,0.00030958,4]
[341543773,1730971184735,-597.48,0.00030958,4]
[341543774,1730971184766,-295.0188554,0.00030958,4]
[341543775,1730971184800,-500.0,0.00030958,4]
[341543776,1730971184830,-500.0,0.00030958,4]
[341543777,1730971184862,-494.36337111,0.00030958,4]
[341543778,1730971184893,-500.0,0.00030958,4]
[341543779,1730971185199,-500.0,0.00030958,4]
[341543780,1730971185233,-500.0,0.00030958,4]
[341543781,1730971185266,-500.0,0.00030958,4]
[341543782,1730971185297,-500.0,0.00030958,4]
[341543783,1730971185330,-500.0,0.00030958,4]
[341543784,1730971185363,-646.88,0.00030958,4]
[341543785,1730971185396,-500.0,0.00030958,4]
[341543786,1730971185428,-500.0,0.00030958,4]
[341543787,1730971185462,-500.0,0.00030958,4]
[341543788,1730971185496,-500.0,0.00030958,4]
[341543789,1730971185528,-500.0,0.00030958,4]
[341543790,1730971185560,-500.0,0.00030958,4]
[341543791,1730971185594,-605.59,0.00030958,4]
[341543792,1730971185626,-500.0,0.00030958,4]
[341543793,1730971185659,-613.29,0.00030958,4]
[341543794,1730971185692,-500.0,0.00030958,4]
[341543795,1730971185723,-500.0,0.00030958,4]
[341543796,1730971185755,-236.4642182,0.00030958,4]
[341543797,1730971185787,-1693.8,0.00030958,4]
[341543798,1730971185818,-500.0,0.00030958,4]
[341543799,1730971185850,-553.05,0.00030958,4]
[341543800,1730971185882,-500.0,0.00030958,4]
[341543801,1730971185914,-500.0,0.00030958,4]
[341543802,1730971185947,-500.0,0.00030958,4]
[341543803,1730971185981,-500.0,0.00030958,4]
[341543804,1730971186012,-500.0,0.00030958,4]
[341543805,1730971186044,-500.0,0.00030958,4]
[341543806,1730971186077,-500.0,0.00030958,4]
[341543807,1730971186108,-828.97,0.00030958,4]
[341543808,1730971186140,-500.0,0.00030958,4]
[341543809,1730971186174,-1212.05,0.00030958,4]
[341543810,1730971186208,-500.0,0.00030958,4]
[341543811,1730971186241,-500.0,0.00030958,4]
[341543812,1730971186277,-392.76873412,0.00030958,4]
[341543813,1730971186313,-2353.59,0.00030958,4]
[341543814,1730971186345,-639.58,0.00030958,4]
[341543815,1730971186379,-743.73,0.00030958,4]
[341543816,1730971186410,-1330.84,0.00030958,4]
[341543817,1730971186441,-2834.07,0.00030958,4]
[341543818,1730971186474,-500.0,0.00030958,4]
[341543819,1730971186506,-1423.99,0.00030958,4]
[341543820,1730971186542,-500.0,0.00030958,4]
[341543821,1730971186575,-509.16,0.00030958,4]
[341543822,1730971186606,-638.18,0.00030958,4]
[341543823,1730971186639,-500.0,0.00030958,4]
[341543824,1730971186673,-610.62,0.00030958,4]
[341543825,1730971186706,-500.0,0.00030958,4]
[341543826,1730971186738,-500.0,0.00030958,4]
[341543827,1730971186768,-500.0,0.00030958,4]
[341543828,1730971186800,-1854.85,0.00030958,4]
[341543829,1730971186831,-500.0,0.00030958,4]
[341543830,1730971186863,-500.0,0.00030958,4]
[341543831,1730971186896,-1449.94,0.00030958,4]
[341543832,1730971186928,-787.38,0.00030958,4]
[341543833,1730971186962,-1171.99,0.00030958,4]
[341543834,1730971186994,-500.0,0.00030958,4]
[341543835,1730971187027,-781.37,0.00030958,4]
[341543836,1730971187059,-500.0,0.00030958,4]
[341543837,1730971187092,-1275.55,0.00030958,4]
[341543838,1730971187125,-500.0,0.00030958,4]
[341543839,1730971187159,-993.68,0.00030958,4]
[341543840,1730971187194,-500.0,0.00030958,4]
[341543841,1730971187226,-583.04,0.00030958,4]
[341543842,1730971187258,-1246.86,0.00030958,4]
[341543843,1730971187291,-858.15,0.00030958,4]
[341543844,1730971187324,-1995.43,0.00030958,4]
[341543845,1730971187359,-500.0,0.00030958,4]
[341543846,1730971187393,-500.0,0.00030958,4]